Workbook

Sheet Print (hidden)
C4: Print Setting
C5: Print From: | G5: Print To:

Sheet PageNoSetup (hidden)
B2: Variable Name | C2: Value | G2: TOC_Index | H2: Prepare for Vlookup (Don't Change) | I2: Generate From Macros | J2: Page Start | K2: Page End | L2: TOC_Index
B3: Current_Year | C3: 2010 | F3: =H3 -> Cover | G3: 1 | H3: =I3 -> Cover | I3: Cover | J3: 1 | K3: =IF(J4<>"",J4-1,$J$60-1) -> 1 | L3: 1
B4: Prev_Year | C4: =C3-1 -> 2009 | F4: =H4 -> Table of Contents | G4: =IF(I4<>"",G3+1,"") -> 2 | H4: =I4 -> Table of Contents | I4: Table of Contents | J4: 2 | K4: 2 | L4: =IF(I4<>"",G3+1,"") -> 2
B5: Post_Year | C5: =Current_Year+1 -> 2011 | F5: PRIMA General Information | G5: =IF(I5<>"",G4+1,"") -> 3 | H5: =I5 -> PRIMA General Information | I5: PRIMA General Information | J5: 3 | K5: 3 | L5: =IF(I5<>"",G4+1,"") -> 3
B6: Current_Year_2 | C6: =Prev_Year&"-"&RIGHT(Current_Year,2) -> 2009-10 | F6: Statement by CEO and CFO | G6: 4 | H6: =I6 -> Statement by CEO and CFO | I6: Statement by CEO and CFO | J6: 4 | K6: 4 | L6: 4
B7: Prev_Year_2 | C7: =Prev_Year-1&"-"&RIGHT(Prev_Year,2) -> 2008-09 | F7: Statement of Comprehensive Income | G7: 5 | H7: =I7 -> Statement of Comprehensive Income | I7: Statement of Comprehensive Income | J7: 5 | K7: 6 | L7: 5
B8: Post_Year_2 | C8: =Current_Year&"-"&RIGHT(Post_Year,2) -> 2010-11 | F8: Balance Sheet | G8: 6 | H8: =I8 -> Balance Sheet | I8: Balance Sheet | J8: 7 | K8: 8 | L8: 6
F9: Statement of Changes in Equity | G9: 7 | H9: Statement of Changes in Equity | I9: Statement of Changes in Equity | J9: 9 | K9: 10 | L9: 7
B10: To Print: | F10: Cash Flow Statement | G10: 8 | H10: Cash Flow Statement | I10: Cash Flow Statement | J10: 11 | K10: 12 | L10: 8
B11: Step 1: | D11: 0 | F11: Schedule of Commitments | G11: 9 | H11: Schedule of Commitments | I11: Schedule of Commitments | J11: 13 | K11: 15 | L11: 9
F12: Schedule of Contingencies | G12: 10 | H12: Schedule of Contingencies | I12: Schedule of Contingencies | J12: 16 | K12: 16 | L12: 10
D13: PDF Setting | F13: Schedule of Asset Additions | G13: 11 | H13: Schedule of Asset Additions | I13: Schedule of Asset Additions | J13: 17 | K13: 17 | L13: 11
B14: Step 2: | D14: ON | F14: Schedule of Administered Items | G14: 12 | H14: Schedule of Administered Items | I14: Schedule of Administered Items | J14: 18 | K14: 25 | L14: 12
F15: Note_Accounting_Policies_Sht | G15: 13 | H15: =LEFT(I15,6) -> Note 1 | I15: Note 1: Summary of Significant Accounting Policies | J15: 26 | K15: 37 | L15: 13
F16: Note_Events_After_sht | G16: 14 | H16: Note 2 | I16: Note 2: Events After the Reporting Period | J16: 38 | K16: 38 | L16: 14
B17: Step 3: | F17: Note_Expenses_sht | G17: 15 | H17: Note 3 | I17: Note 3: Expenses | J17: 39 | K17: 43 | L17: 15
F18: Note_Income_sht | G18: 16 | H18: Note 4 | I18: Note 4: Income | J18: 44 | K18: 47 | L18: 16
F19: Note_Income_Tax_sht | G19: 17 | H19: Note 5 | I19: Note 5: Income Tax Expense (Competitive Neutrality) | J19: 48 | K19: 48 | L19: 17
F20: Note_Other_Comprehensive_sht | G20: 18 | H20: Note 6 | I20: Note 6: Other Comprehensive Income | J20: 49 | K20: 49 | L20: 18
B21: Other Tools: | F21: Note_Financial_Assets_sht | G21: 19 | H21: Note 7 | I21: Note 7: Financial Assets | J21: 50 | K21: 53 | L21: 19
B22: Publish FINAL: | E22: =MAX(G:G) -> 42 | F22: Note_Non_Financial_Assets_sht | G22: 20 | H22: Note 8 | I22: Note 8: Non-Financial Assets | J22: 54 | K22: 63 | L22: 20
F23: Note_Payables_sht | G23: 21 | H23: =LEFT(I23,6) -> Note 9 | I23: Note 9: Payables | J23: 64 | K23: 65 | L23: 21
F24: Note_Interest_Bearing_sht | G24: 22 | H24: =LEFT(I24,7) -> Note 10 | I24: Note 10: Interest Bearing Liabilities | J24: 66 | K24: 68 | L24: 22
B25: Template Transformation: | F25: Note_Provisions_sht | G25: 23 | H25: Note 11 | I25: Note 11: Provisions | J25: 69 | K25: 71 | L25: 23
F26: Note_Restructuring_sht | G26: 24 | H26: Note 12 | I26: Note 12: Restructuring | J26: 72 | K26: 74 | L26: 24
F27: Note_Cash_Flow_Recon_sht | G27: 25 | H27: Note 13 | I27: Note 13: Cash Flow Reconciliation | J27: 75 | K27: 76 | L27: 25
F28: Note_Contingent_Liabilities_sht | G28: 26 | H28: Note 14 | I28: Note 14: Contingent Liabilities and Assets | J28: 77 | K28: 78 | L28: 26
B29: Other: | F29: Note_Senior_Executive_sht | G29: 27 | H29: Note 15 | I29: Note 15: Senior Executive Remuneration | J29: 79 | K29: 79 | L29: 27
F30: Note_Remuneration_Auditors_sht | G30: 28 | H30: Note 16 | I30: Note 16: Remuneration of Auditors | J30: 80 | K30: 80 | L30: 28
F31: Note_Financial_Instrument_sht | G31: 29 | H31: Note 17 | I31: Note 17: Financial Instruments | J31: 81 | K31: 92 | L31: 29
F32: Note_Income_Admin_sht | G32: 30 | H32: Note 18 | I32: Note 18: Income Administered on Behalf of Government | J32: 93 | K32: 95 | L32: 30
F33: Note_Expenses_Admin_sht | G33: 31 | H33: Note 19 | I33: Note 19: Expenses Administered on Behalf of Government | J33: 96 | K33: 99 | L33: 31
B34: Shortcuts: | F34: Note_Assets_Admin_sht | G34: 32 | H34: Note 20 | I34: Note 20: Assets Administered on Behalf of Government | J34: 100 | K34: 112 | L34: 32
B35: Ctrl + Shift + R | C35: Add 5 pixels line above | F35: Note_Liabilities_Admin_sht | G35: 33 | H35: Note 21 | I35: Note 21: Liabilities Administered on Behalf of Government | J35: 113 | K35: 118 | L35: 33
B36: Ctrl + Shift + T | C36: Make line 5 pixels | F36: Note_Admin_Recon_Table_sht | G36: 34 | H36: Note 22 | I36: Note 22: Administered Reconciliation Table | J36: 119 | K36: 119 | L36: 34
B37: Ctrl + Shift + E | C37: Initialise selected line (17 pixels) | F37: Note_Admin_Cont_Assets_Liab_sht | G37: 35 | H37: Note 23 | I37: Note 23: Administered Contingent Assets and Liabilities | J37: 120 | K37: 121 | L37: 35
B38: Ctrl + Shift + W | C38: Increase by 17 pixels | F38: Note_Admin_Investments_sht | G38: 36 | H38: Note 24 | I38: Note 24: Administered Investments | J38: 122 | K38: 122 | L38: 36
B39: Ctrl + Shift + Q | C39: Decrease by 17 pixels | F39: Note_Admin_Fin_Instr_sht | G39: 37 | H39: Note 25 | I39: Note 25: Administered Financial Instruments | J39: 123 | K39: 132 | L39: 37
F40: Note_Appropriations_sht | G40: 38 | H40: Note 26 | I40: Note 26: Appropriations | J40: 133 | K40: 140 | L40: 38
F41: Note_Special_Accounts_sht | G41: 39 | H41: Note 27 | I41: Note 27: Special Accounts | J41: 141 | K41: 142 | L41: 39
F42: Note_Compen_Debt_Relief_sht | G42: 40 | H42: Note 28 | I42: Note 28: Compensation and Debt Relief | J42: 143 | K42: 145 | L42: 40
F43: Note_Assets_Held_in_Trust_sht | G43: 41 | H43: Note 29 | I43: Note 29: Assets Held in Trust | J43: 146 | K43: 146 | L43: 41
F44: Note_Reporting_of_Outcomes_sht | G44: 42 | H44: Note 30 | I44: Note 30: Reporting of Outcomes | J44: 147 | K44: =IF(J45<>"",J45-1,$J$60-1) -> 150 | L44: 42
K45: 150
K46: 150
K47: 150
K48: 150
K49: 150
K50: 150
K51: 150
K52: 150
K53: 150
K54: 150
K55: 150
K56: 150
K57: 150
K58: 150
K59: 150
J60: 151 | K60: 150

Sheet Table of Contents
A1: AUSTRALIAN HUMAN RIGHTS COMMISSION
B5: FINANCIAL STATEMENTS
B6: for the period ended 30 June 2011
A10: Table of Contents
C11: Page
B15: Independent Audit Report | C15: -
B17: Statement by the Chief Executive and Chief Finance Officer | C17: -
B19: Statement of Comprehensive Income | C19: -
B21: Balance Sheet | C21: -
B23: Statement of Changes in Equity | C23: -
B25: Cash Flow Statement | C25: -
B27: Schedule of Commitments | C27: -
B29: Schedule of Contingencies | C29: -
B31: Schedule of Asset Additions | C31: -
B33: Notes to and forming part of the financial statements:
B34: Note 1: Summary of Significant Accounting Policies | C34: -
B35: Note 2: Events after the Reporting Period | C35: -
B36: Note 3: Expenses | C36: -
B37: Note 4: Income | C37: -
B38: Note 5: Financial Assets | C38: -
B39: Note 6: Non-Financial Assets | C39: -
B40: Note 7: Payables | C40: -
B41: Note 8: Non-Interest Bearing Liabilities | C41: -
B42: Note 9: Provisions | C42: -
B43: Note 10: Cash Flow Reconciliation | C43: -
B44: Note 11: Contingent Liabilities and Assets | C44: -
B45: Note 12: Senior Executive Remuneration | C45: -
B46: Note 13: Remuneration of Auditors | C46: -
B47: Note 14: Financial Instruments | C47: -
B48: Note 15: Appropriations | C48: -
B49: Note 16: Special Accounts
B50: Note 17: Compensation and Debt Relief | C50: -
B51: Note 18: Reporting of Outcomes | C51: -
B52: Note 19: Comprehensive Loss Attributable to the Commission | C52: -

Sheet Statement by Officer
A1: AUSTRALIAN HUMAN RIGHTS COMMISSION
A5: FINANCIAL STATEMENTS
A6: for the period ended 30 June 2011
A13: STATEMENT BY THE CHIEF EXECUTIVE AND CHIEF FINANCE OFFICER
B23: In our opinion, the attached financial statements for the period ended 30 June 2011 are based on properly maintained financial records and give a true and fair view of the matters required by the Finance Minister's Orders made under the Financial Management and Accountability Act 1997, as amended.
B41: The Hon. Catherine Branson QC | G41: David Richards
B42: President and Chief Executive | G42: Chief Finance Officer
B44: September 2011 | G44: September 2011

Sheet Income Statement
D1: AUSTRALIAN HUMAN RIGHTS COMMISSION
D3: STATEMENT OF COMPREHENSIVE INCOME
D4: for the period ended 30 June 2011
F7: 2011 | H7: 2010
B8: AASB 101.10(b) | E8: Notes | F8: $'000 | H8: $'000
D9: EXPENSES
D10: Employee benefits | E10: 3A | F10: ='Note 3'!E14 -> 12088 | H10: 11012
D11: Supplier expenses | E11: 3B | F11: ='Note 3'!E43 -> 7594 | H11: 8055
D12: Depreciation and amortisation | E12: 3C | F12: ='Note 3'!E57 -> 358 | H12: 302
D13: Finance costs | E13: 3D | F13: ='Note 3'!E61 -> 25 | H13: 28
D14: Write-down and impairment of assets | E14: 3E | F14: ='Note 4'!E8 -> 232 | H14: 9
D15: TOTAL EXPENSES | F15: =SUM(F10:F14) -> 20297 | H15: =SUM(H10:H14) -> 19406
D17: LESS:
D18: OWN-SOURCE INCOME
D20: Own-source revenue
D21: Sale of goods and rendering of services | E21: 4A | F21: ='Note 4'!E23 -> 4870 | H21: 4360
D22: Other revenue | E22: 4B | F22: ='Note 4'!E29 -> 675 | H22: 632
B23: AASB 101.82(a) | D23: Total own-source revenue | F23: =SUM(F21:F22) -> 5545 | H23: =SUM(H21:H22) -> 4992
B25: AASB 101.34(a) | D25: GAINS
D26: Other gains | E26: 4C | F26: ='Note 4'!E38 -> 98 | H26: 89
D27: TOTAL GAINS | F27: =SUM(F26:F26) -> 98 | H27: =SUM(H26:H26) -> 89
D29: TOTAL OWN-SOURCE INCOME | F29: =SUM(F23+F27) -> 5643 | H29: =SUM(H23+H27) -> 5081
D31: NET COST OF SERVICES | F31: =F29-F15 -> -14654 | H31: =H29-H15 -> -14325
D33: Revenue from Government | E33: 4D | F33: ='Note 4'!E48 -> 14424 | H33: 13711
B34: AASB 101.83(a)(ii) | D34: DEFICIT ATTRIBUTABLE TO THE AUSTRALIAN GOVERNMENT | F34: =F31+F33 -> -230 | H34: =H31+H33 -> -614
D36: OTHER COMPREHENSIVE INCOME
D37: Changes in asset revaluation reserves | F37: ='Statement of Changes in Equity'!G22 -> -422 | H37: -401
D38: TOTAL OTHER COMPREHENSIVE INCOME | F38: =F37 -> -422 | H38: -401
D40: TOTAL COMPREHENSIVE LOSS ATTRIBUTABLE TO THE
D41: AUSTRALIAN GOVERNMENT | F41: =F34+F38 -> -652 | H41: =H34+H38 -> -1015
D62: The above statement should be read in conjunction with the accompanying notes.

Sheet Balance Sheet
D1: AUTRALIAN HUMAN RIGHTS COMMISSION
D3: BALANCE SHEET
D4: as at 30 June 2011
F7: 2011 | H7: 2010
E8: Notes | F8: $’000 | H8: $’000
D9: ASSETS
D10: Financial Assets
B11: AASB 101.54(i) | D11: Cash and cash equivalents | E11: 5A | F11: ='Note 5 & 6'!F9 -> 1081 | H11: 439
B12: AASB 101.54(h) | D12: Trade and other receivables | E12: 5B | F12: ='Note 5 & 6'!F25 -> 7804 | H12: 5954
D13: Total financial assets | F13: =SUM(F11:F12) -> 8885 | H13: =SUM(H11:H12) -> 6393
D15: Non-Financial Assets
B16: AASB 101.54(a) | D16: Infrastructure, plant and equipment | E16: 6A,B | F16: ='Note 5 & 6'!F59 -> 5822 | H16: 1222
B17: AASB 101.54(c) | D17: Intangibles | E17: 6C,D | F17: ='Note 6,7,8,9'!F62 -> 0 | H17: 19
D18: Other non-financial assets | E18: 6E | F18: ='Note 6,7,8,9'!F111 -> 45 | H18: 86
D19: Total non-financial assets | F19: =SUM(F16:F18) -> 5867 | H19: =SUM(H16:H18) -> 1327
D20: TOTAL ASSETS | F20: =F13+F19 -> 14752 | H20: =H13+H19 -> 7720
D22: LIABILITIES
B23: AASB 101.54(k) | D23: Payables
D24: Supplier payables | E24: 7A | F24: ='Note 6,7,8,9'!F126 -> 816 | H24: 1025
B25: AASB 101.54(k) | D25: Other payables | E25: 7B | F25: ='Note 6,7,8,9'!F141 -> 4327 | H25: 3094
D26: Total payables | F26: =SUM(F24:F25) -> 5143 | H26: =SUM(H24:H25) -> 4119
D28: Non-Interest Bearing Liabilites
D29: Lease incentives | E29: 8A | F29: ='Note 6,7,8,9'!F156 -> 5667 | H29: 48
D30: Total non-interest bearing liabilities | F30: =SUM(F29:F29) -> 5667 | H30: =SUM(H29:H29) -> 48
B32: AASB 101.54(l) | D32: Provisions
D33: Employee provisions | E33: 9A | F33: ='Note 6,7,8,9'!F172 -> 2302 | H33: 2098
D34: Other provisions | E34: 9B | F34: ='Note 9 cont.'!I10 -> 335 | H34: 825
D35: Total provisions | F35: =SUM(F33:F34) -> 2637 | H35: =SUM(H33:H34) -> 2923
D36: TOTAL LIABILITIES | F36: =F26+F35+F30 -> 13447 | H36: =H26+H35+H30 -> 7090
D38: NET ASSETS | F38: =SUM(F20-F36) -> 1305 | H38: =SUM(H20-H36) -> 630
D40: EQUITY
B41: AASB 101.54(r) | D41: Contributed equity | F41: ='Statement of Changes in Equity'!I34 -> 1442 | H41: 115
B42: AASB 101.54(r) | D42: Reserves | F42: ='Statement of Changes in Equity'!G34 -> 0 | H42: 422
D43: Retained earnings | F43: ='Statement of Changes in Equity'!E34 -> -137 | H43: 93
D44: TOTAL EQUITY | F44: =SUM(F41:F43) -> 1305 | H44: =SUM(H41:H43) -> 630
D48: The above statement should be read in conjunction with the accompanying notes.

Sheet Statement of Changes in Equity
D1: AUSTRALIAN HUMAN RIGHTS COMMISSION
D3: STATEMENT OF CHANGES IN EQUITY
D4: for the period ended 30 June 2011
G8: Asset
E9: Retained | G9: Revaluation | I9: Contributed | K9: Total equity
E10: Earnings | G10: Reserve | I10: equity/capital
E11: 2011 | F11: 2010 | G11: 2011 | H11: 2010 | I11: 2011 | J11: 2010 | K11: 2011 | L11: 2010
B12: AASB 101.106(d) | E12: $’000 | F12: $'000 | G12: $’000 | H12: $’000 | I12: $’000 | J12: $’000 | K12: $’000 | L12: $’000
D13: Opening balance
D14: Balance carried forward from previous period | E14: =F34 -> 93 | F14: 707 | G14: =H34 -> 422 | H14: 823 | I14: =J34 -> 115 | J14: 1342 | K14: =SUM(E14+G14+I14) -> 630 | L14: 2872
D15: Adjusted opening balance | E15: =SUM(E14:E14) -> 93 | F15: 707 | G15: 422 | H15: 823 | I15: 115 | J15: 1342 | K15: 630 | L15: 2872
D17: Comprehensive income
D18: Changes in asset revaluation reserves:
D19: Computer, plant and equipment | E19: 0 | F19: 0 | G19: -40 | H19: -92 | I19: 0 | J19: 0 | K19: =SUM(E19+G19+I19) -> -40 | L19: -92
D20: Leasehold improvements | E20: 0 | F20: 0 | G20: -382 | H20: -309 | I20: 0 | J20: 0 | K20: -382 | L20: -309
D21: Deficit for the period | E21: ='Income Statement'!F34 -> -230 | F21: -614 | K21: -230 | L21: -614
B22: AASB 101.106(a) | D22: Total comprehensive income | E22: =SUM(E21:E21) -> -230 | F22: =SUM(F21:F21) -> -614 | G22: =SUM(G19:G20) -> -422 | H22: =SUM(H19:H20) -> -401 | I22: =SUM(I21:I21) -> 0 | J22: =SUM(J21:J21) -> 0 | K22: =SUM(K19:K21) -> -652 | L22: =SUM(L19:L21) -> -1015
D23: of which:
B24: AASB 101.106(a) | D24: Attributable to the Australian Government | E24: =E22 -> -230 | F24: =F22 -> -614 | G24: =G22 -> -422 | H24: =H22 -> -401 | I24: 0 | J24: 0 | K24: =I24+E24+G24 -> -652 | L24: =SUM(F24+H24+J24) -> -1015
B26: AASB 101.106(c) | D26: Transactions with owners
D27: Distributions to owners
D28: Returns of capital:
D29: Other1 | E29: 0 | F29: 0 | G29: 0 | H29: 0 | I29: 0 | J29: -1227 | K29: =SUM(E29+G29+I29) -> 0 | L29: =SUM(F29+H29+J29) -> -1227
D30: Contributions by owners
D31: Equity Injection - Appropriation | E31: 0 | F31: 0 | G31: 0 | H31: 0 | I31: 510 | J31: 0 | K31: =I31 -> 510 | L31: 0
D32: Departmental Capital Budget | E32: 0 | F32: 0 | G32: 0 | H32: 0 | I32: 817 | J32: 0 | K32: =I32 -> 817 | L32: 0
D33: Sub-total transactions with owners | E33: =SUM(E28:E30) -> 0 | F33: =SUM(F28:F30) -> 0 | G33: =SUM(G28:G30) -> 0 | H33: =SUM(H28:H30) -> 0 | I33: =SUM(I31:I32) -> 1327 | J33: =SUM(J28:J30) -> -1227 | K33: =SUM(K31:K32) -> 1327 | L33: =SUM(L28:L30) -> -1227
B34: AASB 101.106(a) | D34: Closing balance attributable to the Australian Government | E34: =E15+E22+SUM(E33:E33) -> -137 | F34: 93 | G34: 0 | H34: 422 | I34: 1442 | J34: 115 | K34: =K15+K24+K33 -> 1305 | L34: 630
D36: 1 Return of contributed equity/capital under the application of the Operation Sunlight initiative.
D38: The above statement should be read in conjunction with the accompanying notes.

Sheet Cash Flow Statement
D1: AUSTRALIAN HUMAN RIGHTS COMMISSION
D3: CASH FLOW STATEMENT
D4: for the period ended 30 June 2011
F6: 2011 | H6: 2010
B7: AASB 107.18(a) | E7: Notes | F7: $’000 | H7: $’000
B8: FMO 60.1
B9: AASB 107.10 | D9: OPERATING ACTIVITIES
D10: Cash received
D11: Goods and services | F11: 7139 | H11: 5263
D12: Appropriations | F12: 14424 | H12: 13711
B13: Int 1031.11 | D13: Net GST received | F13: 101 | H13: 6
D14: Cash from the Official Public Account | F14: 5900 | H14: 6613
D15: Total cash received | F15: =SUM(F11:F14) -> 27564 | H15: =SUM(H11:H14) -> 25593
D17: Cash used
D18: Employees | F18: -11826 | H18: -11237
D19: Suppliers | F19: -8755 | H19: -8290
D20: Cash to the Official Public Account | F20: -6325 | H20: -6378
D21: Total cash used | F21: =SUM(F18:F20) -> -26906 | H21: =SUM(H18:H20) -> -25905
D22: Net cash from/(used by) operating activities | E22: 10 | F22: =SUM(F15+F21) -> 658 | H22: =SUM(H15+H21) -> -312
B24: AASB 107.10 | D24: INVESTING ACTIVITIES
B25: AASB 107.21 | D25: Cash received
D26: Proceeds from lease incentive | F26: =5577 -> 5577 | H26: 0
D27: Total cash received | F27: =F26 -> 5577 | H27: 0
D29: Cash used
D30: Purchase of infrastructure, plant and equipment | F30: =-5577-16 -> -5593 | H30: -396
D31: Purchase of intangibles | F31: 0 | H31: -3
D32: Total cash used | F32: =SUM(F30:F31) -> -5593 | H32: =SUM(H30:H31) -> -399
D33: Net cash used by investing activities | F33: =F32+F27 -> -16 | H33: =H32 -> -399
D36: Net increase/(decrease) in cash held | F36: =SUM(F33+F22) -> 642 | H36: =SUM(H33+H22) -> -711
D37: Cash and cash equivalents at the beginning of the reporting period | F37: =H38 -> 439 | H37: 1150
D38: Cash and cash equivalents at the end of the reporting period | E38: 5A | F38: =SUM(F36:F37) -> 1081 | H38: 439
D40: The above statement should be read in conjunction with the accompanying notes.

Sheet Schedule of Commitments
D1: AUSTRALIAN HUMAN RIGHTS COMMISSION
D3: SCHEDULE OF COMMITMENTS
D4: as at 30 June 2011
E6: 2011 | G6: 2010
D7: BY TYPE | E7: $’000 | G7: $’000
D8: Commitments Receivable
D9: Sublease rental income | E9: -10999 | G9: -736
D10: Other commitments receivable | E10: -2269 | G10: -1321
D11: GST recoverable on commitments | E11: -2122 | G11: -126
D12: Total commitments receivable | E12: =SUM(E9:E11) -> -15390 | G12: =SUM(G9:G11) -> -2183
D14: Commitments Payable
B15: AASB 101.Aus138.6 | D15: Capital commitments
D16: Infrastructure, plant and equipment1 | E16: 1157 | G16: 9
D17: Total capital commitments | E17: =SUM(E16) -> 1157 | G17: =SUM(G16:G16) -> 9
B19: AASB 101.Aus138.6 | D19: Other commitments
D20: Operating leases2 | E20: 37423 | G20: 2711
D21: Other | E21: 150 | G21: 99
D22: Total other commitments | E22: =SUM(E20:E21) -> 37573 | G22: =SUM(G20:G21) -> 2810
D23: NET COMMITMENTS BY TYPE | E23: =SUM(E22+E17+E12) -> 23340 | G23: =SUM(G22+G17+G12) -> 636
D25: BY MATURITY
D27: Commitments Receivable
B28: AASB 117.35(a) | D28: Operating lease income
D29: One year or less | E29: -925 | G29: -736
D30: From one to five years | E30: -5179 | G30: 0
D31: Over five years | E31: -4895 | G31: 0
D32: Total operating lease income | E32: =SUM(E29:E31) -> -10999 | G32: =SUM(G29:G31) -> -736
B34: AASB 101.Aus138.6 | D34: Other Commitments Receivable
D35: One year or less | E35: -1974 | G35: -1347
D36: From one to five years | E36: -2417 | G36: -100
D37: Total other commitments receivable | E37: =SUM(E35:E36) -> -4391 | G37: =SUM(G35:G36) -> -1447
D39: Commitments Payable
B40: AASB 101.Aus138.6 | D40: Capital commitments
D41: One year or less | E41: 1157 | G41: 9
D42: Total capital commitments | E42: =SUM(E41:E41) -> 1157 | G42: =SUM(G41:G41) -> 9
B44: AASB 117.35(a) | D44: Operating lease commitments
D45: One year or less | E45: 3327 | G45: 2711
D46: From one to five years | E46: 17731 | G46: 0
D47: Over five years | E47: 16365 | G47: 0
D48: Total operating lease commitments | E48: =SUM(E45:E47) -> 37423 | G48: =SUM(G45:G47) -> 2711
D50: Other Commitments
B51: AASB 101.Aus138.6 | D51: One year or less | E51: 150 | G51: 99
D52: Total other commitments | E52: =SUM(E51:E51) -> 150 | G52: =SUM(G51:G51) -> 99
D53: NET COMMITMENTS BY MATURITY | E53: =SUM(E52+E48+E42+E37+E32) -> 23340 | G53: =SUM(G52+G48+G42+G37+G32) -> 636
D55: Note: Commitments are GST inclusive where relevant.
D56: Nature of Leases/General Description
D57: 1. Outstanding payments for leasehold improvements
D58: 2. Operating leases included are effectively non-cancellable and comprise:
D60: Leases for office accommodation
D61: Lease payments are subject to fixed annual rental increases. The initial periods of accommodation are still current and there are no options in the lease agreement to renew.
D62: Agreements for the provision of motor vehicles to senior executive officers
D63: No contingent rentals exist and ther are no renewal or purchase options available to the Commission.
D64: Lease agreement in relation to the provision of desktop computer equipment and printers
D65: The lessor provides all desktop computer equipment and software. The lease agreement allows for variations to the duration of the rental period and to the equipment being provided.
D66: Other commitments
D67: Consists of agreements with other entities for the provision of goods and services, outgoings and agreements equally proportionately unperformed.
D68: This schedule should be read in conjunction with the accompanying notes.

Sheet Schedule of Contingencies
D1: AUSTRALIAN HUMAN RIGHTS COMMISSION
D3: SCHEDULE OF CONTINGENCIES
D4: as at 30 June 2011
B6: AASB 137.84-92 | G6: 2011 | I6: 2010
B7: FMO 80 | G7: $’000 | I7: $’000
D9: Contingent Assets | G9: 0 | I9: 0
D10: Contingent Liabilities | G10: 0 | I10: 0
D12: Net contingent assets (liabilities) | G12: 0 | I12: 0
D15: Details of each class of contingent assets and liabilities, including those not included above because they cannot be quantified, are disclosed in Note 11: Contingent liabilities and assets.
B16: FMO 80.1,2
D17: The above schedule should be read in conjunction with the accompanying notes.

Sheet Schedule of Asset Additions
D1: AUSTRALIAN HUMAN RIGHTS COMMISSION
D3: SCHEDULE OF ASSET ADDITIONS
D4: for the period ended 30 June 2011
D7: The following non-financial non-current assets were added in 2010-2011
E9: Infrastructure, plant & equipment | F9: Intangibles | G9: Total
E10: $’000 | F10: $’000 | G10: $’000
D11: By purchase - appropriation ordinary annual services | E11: 16 | F11: 0 | G11: =SUM(E11:F11) -> 16
D12: By purchase - other | E12: 5577 | F12: 0 | G12: =SUM(E12:F12) -> 5577
D13: Total additions funded in the current year | E13: =SUM(E11:E12) -> 5593 | F13: =SUM(F11:F11) -> 0 | G13: =SUM(G11:G12) -> 5593
D15: Additions recognised in 2010-2011 to be funded in future years
D16: Make-good | E16: 25 | F16: 0 | G16: =SUM(E16:F16) -> 25
D17: Total additions funded in future years | E17: =SUM(E16:E16) -> 25 | F17: =SUM(F16:F16) -> 0 | G17: =SUM(G16:G16) -> 25
D18: Total asset additions | E18: =E17+E13 -> 5618 | F18: =F17+F13 -> 0 | G18: =G17+G13 -> 5618
D21: The following non-financial non-current assets were added in 2009-2010
E23: Infrastructure, plant & equipment | F23: Intangibles | G23: Total
E24: $’000 | F24: $’000 | G24: $’000
D25: By purchase - appropriation ordinary annual services | E25: 396 | F25: 3 | G25: =SUM(E25:F25) -> 399
D26: Total additions funded in the current year | E26: =SUM(E25:E25) -> 396 | F26: =SUM(F25:F25) -> 3 | G26: =SUM(G25:G25) -> 399
D28: Additions recognised in 2009-2010 to be funded in future years
D29: Make-good | E29: 27 | F29: 0 | G29: =SUM(E29:F29) -> 27
D30: Total additions funded in future years | E30: =SUM(E29:E29) -> 27 | F30: =SUM(F29:F29) -> 0 | G30: =SUM(G29:G29) -> 27
D31: Total asset additions | E31: =E30+E26 -> 423 | F31: =F30+F26 -> 3 | G31: =G30+G26 -> 426
D37: The above schedule should be read in conjunction with the accompanying notes.

Sheet Note 1 & 2
B3: Reference | D3: Note 1: Summary of Significant Accounting Policies
D6: 1.1 Objectives of The Australian Human Rights Commission
D8: The Australian Human Rights Commission (the Commission) is an Australian Government controlled entity. The Commission's objective is to ensure that Australians have access to independent human rights complaint handling and public inquiries processes and benefit from human rights education, promotion, monitoring and compliance activities.
B10: AASB 1052.15(b) | D10: The Commission is structured to meet the following outcome:
D12: "An Australian Society in which human rights are respected, protected and promoted through independent investigation and resolution of complaints, education and research to promote and eliminate discrimination, and monitoring, and reporting on human rights."
D14: The continued existence of the Commission in its present form and with its present programs is dependent on Government policy and on continuing appropriations by Parliament for the Commission’s administration and programs.
B16: FMO 15 | D16: Commission activities contributing toward these outcomes are classified as departmental. Departmental activities involve the use of assets, liabilities, income and expenses controlled or incurred by the Commission in its own right.
D18: The Commission has no administered activities.
D20: 1.2 Basis of Preparation of the Financial Statements
D22: The financial statements are required by section 49 of the Financial Management and Accountability Act 1997 and are general purpose financial statements.
B25: FMO 8.2(a) | D25: The Financial Statements have been prepared in accordance with:
D27: · Finance Minister’s Orders (or FMO) for reporting periods ending on or after 1 July 2010; and
B29: AASB 101.Aus15.2 | D29: · Australian Accounting Standards and Interpretations issued by the Australian Accounting Standards Board (AASB) that apply for the reporting period.
B31: AASB 101.27 AASB 101.117(a) | D31: The financial statements have been prepared on an accrual basis and in accordance with the historical cost convention, except for certain assets and liabilities at fair value. Except where stated, no allowance is made for the effect of changing prices on the results or the financial position.
B33: AASB 101.51(d) | D33: The financial statements are presented in Australian dollars and values are rounded to the nearest thousand dollars
B34: FMO 13 | D34: unless otherwise specified.
D36: Unless an alternative treatment is specifically required by an accounting standard or the FMO, assets and liabilities are recognised in the balance sheet when and only when it is probable that future economic benefits will flow to the entity or a future sacrifice of economic benefits will be required and the amounts of the assets or liabilities can be reliably measured. However, assets and liabilities arising under Agreements Equally Proportionately Unperformed are not recognised unless required by an accounting standard. Liabilities and assets that are unrecognised are reported in the schedule of commitments or the schedule of contingencies.
D37: Unless alternative treatment is specifically required by an accounting standard, income and expenses are recognised in the statement of comprehensive income when and only when the flow, consumption or loss of economic benefits has occurred and can be reliably measured.
B39: Reference | D39: 1.3 Significant Accounting Judgements and Estimates
B41: AASB 101.122 | D41: No significant accounting assumptions or estimates have been identified that have a significant risk of causing a material adjustment to carrying amounts of assets and liabilities within the next accounting period.
D46: Note 1: Summary of Significant Accounting Policies (continued)
D48: 1.4 New Australian Accounting Standards
B50: AASB 108.28 | D50: Adoption of New Australian Accounting Standard Requirements
D52: No accounting standard has been adopted earlier than the application date as stated in the standard. No new accounting standards (including reissued standards), amendments to standards or interpretations issued by the Australian Accounting Standards Board that are applicable to the current period have had a material financial impact on the Commission.
D54: Future Australian Accounting Standard Requirements
B56: AASB 108.30-31 | D56: New standards, revised standards, interpretations and amending standards issued by the Australian Accounting Standards Board prior to the signing of the statement by the Chief Executive and Chief Finance Officer, are not expected to have a material financial impact on the Commission for future reporting periods.
D57: 1.5 Revenue
B59: AASB 118.35(a) | D59: Revenue from Government
B61: FMO 101 | D61: Amounts appropriated for departmental outputs for the year (adjusted for any formal additions and reductions) are recognised as revenue when the Commission gains control of the appropriation, except for certain amounts that relate to activities that are reciprocal in nature, in which case revenue is recognised only when it has been earned.
D63: Appropriations receivable are recognised at their nominal amounts.
B65: Reference | D65: Other Types of Revenue
B67: AASB 118.14 | D67: Revenue from the sale of goods is recognised when:
D69: · the risks and rewards of ownership have been transferred to the buyer;
D71: · the Commission retains no managerial involvement or effective control over the goods;
D73: · the revenue and transaction costs incurred can be reliably measured; and
D75: · it is probable that the economic benefits associated with the transaction will flow to the entity.
B77: AASB 118.20 | D77: Revenue from rendering of services is recognised by reference to the stage of completion of contracts at the reporting date. The revenue is recognised when:
D79: · the amount of revenue, stage of completion and transaction costs incurred can be reliably measured; and
D81: · the probable economic benefits associated with the transaction will flow to the entity.
B83: AASB 118.24 | D83: The stage of completion of contracts at the reporting date is determined by reference to:
D85: · the proportion that costs incurred to date bear to the estimated total costs of the transaction.
D87: Receivables for goods and services, which have 30 day terms, are recognised at the nominal amounts due less any impairment allowance account. Collectability of debts is reviewed at end of reporting period. Allowances are made when collectability of the debt is no longer probable.
D89: 1.6 Gains
D91: Resources Received Free of Charge
D93: Resources received free of charge are recognised as gains when, and only when, a fair value can be reliably determined and the services would have been purchased if they had not been donated. Use of those resources is recognised as an expense.
D95: Sale of Assets
D97: Gains from disposal of assets are recognised when control of the asset has passed to the buyer.
D100: Note 1: Summary of Significant Accounting Policies (continued)
D102: 1.7 Transactions with the Government as Owner
B104: FMO 101.8 | D104: Equity Injections
B106: Int 1038 | D106: Amounts appropriated which are designated as ‘equity injections’ for a year (less any formal reductions) and Departmental Capital Budgets (DCBs) are recognised directly in contributed equity in that year.
B107: FMO 101.13
D109: Other Distributions to Owners
B111: FMO 101.15 FMO 101.16 | D111: The FMO require that distributions to owners be debited to contributed equity unless in the nature of a dividend.
B112: Reference | D112: 1.8 Employee Benefits
B114: AASB 119.10 | D114: Liabilities for ‘short-term employee benefits’ (as defined in AASB 119 Employee Benefits) and termination benefits due within twelve months of end of reporting period are measured at their nominal amounts.
B115: AASB 119.14 | D115: The nominal amount is calculated with regard to the rates expected to be paid on settlement of the liability.
B116: AASB 119.128 | D116: Other long-term employee benefits are measured as net total of the present value of the defined benefit obligation at the end of the reporting period minus the fair value at the end of the reporting period of plan assets (if any) out of which the obligations are to be settled directly.
D118: Leave
B120: AASB 119.11 | D120: The liability for employee benefits includes provision for annual leave and long service leave. No provision has been made for sick leave as all sick leave is non-vesting and the average sick leave taken in future years by employees of the Commission is estimated to be less than the annual entitlement for sick leave.
D121: The leave liabilities are calculated on the basis of employees’ remuneration at the estimated salary rates that will applied at the time the leave is taken, including the Commission’s employer superannuation contribution rates to the extent that the leave is likely to be taken during service rather than paid out on termination.
B122: AASB 119.128 | D122: The liability for long service leave has been determined by reference to the work of an actuary as at 30 June 2011. The estimate of the present value of the liability takes into account attrition rates and pay increases through promotion and inflation.
D124: Separation and Redundancy
B126: AASB 119.133 | D126: Provision is made for separation and redundancy benefit payments. The Commission recognises a provision for termination when it has developed a detailed formal plan for the terminations and has informed those employees affected that it will carry out the terminations.
D128: Superannuation
D130: Staff of the Commission are members of the Commonwealth Superannuation Scheme (CSS), the Public Sector Superannuation Scheme (PSS) or the PSS accumulation plan (PSSap).
D132: The CSS and PSS are defined benefit schemes for the Australian Government. The PSSap is a defined contribution scheme.
D134: The liability for defined benefits is recognised in the financial statements of the Australian Government and is settled by the Australian Government in due course. This liability is reported by the Department of Finance and Deregulation as an administered item.
D136: The Commission makes employer contributions to the employee superannuation scheme at rates determined by an actuary to be sufficient to meet the current cost to the Government of the superannuation entitlements of the Commission’s employees. The Commission accounts for the contributions as if they were contributions to defined contribution plans.
D138: The liability for superannuation recognised as at 30 June represents outstanding contributions for the final fortnight of the year.
D141: Note 1: Summary of Significant Accounting Policies (continued)
D143: 1.9 Leases
B145: AASB 117.4 | D145: A distinction is made between finance leases and operating leases. Finance leases effectively transfer from the lessor to the lessee substantially all the risks and rewards incidental to ownership of leased assets. An operating lease is a lease that is not a finance lease. In operating leases, the lessor effectively retains substantially all such risks and benefits.
B147: AASB 117.20 | D147: Where an asset is acquired by means of a finance lease, the asset is capitalised at either the fair value of the lease property or, if lower, the present value of minimum lease payments at the inception of the contract and a liability is recognised at the same time and for the same amount.
D149: The discount rate used is the interest rate implicit in the lease. Leased assets are amortised over the period of the lease. Lease payments are allocated between the principal component and the interest expense.
B151: AASB 117.33 | D151: Operating lease payments are expensed on a straight-line basis which is representative of the pattern of benefits derived from the leased assets.
B153: Reference | D153: 1.10 Cash
B155: AASB 107.6 | D155: Cash and cash equivalents includes cash on hand, cash held with outsiders, demand deposits in bank accounts with an original maturity of 3 months or less that are readily convertible to known amounts of cash and subject to insignificant risk of changes in value. Cash is recognised at its nominal amount.
D157: 1.11 Financial Assets
B159: AASB 7.21 | D159: The Commission classifies its financial assets as 'loans and receivables'.
D161: The classification depends on the nature and purpose of the financial assets and is determined at the time of initial recognition.
D163: Financial assets are recognised and derecognised upon trade date.
D165: Effective Interest Method
D167: The effective interest method is a method of calculating the amortised cost of a financial asset and of allocating interest income over the relevant period. The effective interest rate is the rate that exactly discounts estimated future cash receipts through the expected life of the financial asset, or, where appropriate, a shorter period.
B169: AASB 139.9 | D169: Loans and Receivables
D171: Trade receivables, loans and other receivables that have fixed or determinable payments that are not quoted in an active market are classified as ‘loans and receivables’. Loans and receivables are measured at cost.
B173: Reference | D173: Impairment of Financial Assets
B175: FMO 45.4 | D175: Financial assets are assessed for impairment at the end of each reporting period.
B178: AASB 139.66 | D178: Financial assets held at cost - If there is objective evidence that an impairment loss has been incurred for loans and receivables the amount of the impairment loss is the difference between the carrying amount of the asset and the present value of the estimated future cash flows discounted at the current market rate for similar assets.
D180: 1.12 Financial Liabilities
D182: Financial liabilities are classified as ‘other financial liabilities'.
D184: Financial liabilities are recognised and derecognised upon ‘trade date’.
D186: Note 1: Summary of Significant Accounting Policies (continued)
D189: Other Financial Liabilities
D191: Other financial liabilities, including borrowings, are initially measured at fair value, net of transaction costs.
D193: Other financial liabilities are subsequently measured at amortised cost using the effective interest method, with interest expense recognised on an effective yield basis.
D195: The effective interest method is a method of calculating the amortised cost of a financial liability and of allocating interest expense over the relevant period. The effective interest rate is the rate that exactly discounts estimated future cash payments through the expected life of the financial liability, or, where appropriate, a shorter period.
B197: AASB 139.47 | D197: Supplier and other payables are recognised at amortised cost. Liabilities are recognised to the extent that the goods or services have been received (and irrespective of having been invoiced).
D199: 1.13 Contingent Liabilities and Contingent Assets
B201: AASB 137.27-28 | D201: Contingent liabilities and contingent assets are not recognised in the balance sheet but are reported in the relevant schedules and notes. They may arise from uncertainty as to the existence of a liability or asset or represent an asset or liability in respect of which the amount cannot be reliably measured. Contingent assets are disclosed when settlement is probable but not virtually certain and contingent liabilities are disclosed when settlement is greater than remote.
B203: Reference | D203: 1.14 Acquisition of Assets
B205: AASB 116.15 | D205: Assets are recorded at cost on acquisition except as stated below. The cost of acquisition includes the fair value of assets transferred in exchange and liabilities undertaken. Financial assets are initially measured at their fair value plus transaction costs where appropriate.
B207: FMO 92 AASB 116.Aus.15.1 | D207: Assets acquired at no cost, or for nominal consideration, are initially recognised as assets and income at their fair value at the date of acquisition, unless acquired as a consequence of restructuring of administrative arrangements. In the latter case, assets are initially recognised as contributions by owners at the amounts at which they were recognised in the transferor agency’s accounts immediately prior to the restructuring.
D209: 1.15 Infrastructure, Plant and Equipment
D211: Asset Recognition Threshold
B213: AASB 116.15 | D213: Purchases of infrastructure, plant and equipment are recognised initially at cost in the balance sheet, except for purchases costing less than $2,000, which are expensed in the year of acquisition (other than where they form part of a group of similar items which are significant in total).
B215: AASB 116.16(c) | D215: The initial cost of an asset includes an estimate of the cost of dismantling and removing the item and restoring the site on which it is located. This is particularly relevant to ‘make good’ provisions in property leases taken up by the Commission where there exists an obligation to restore the property to its original condition. These costs are included in the value of the Commission's leasehold improvements with a corresponding provision for the ‘make good’ recognised.
D219: Note 1: Summary of Significant Accounting Policies (continued)
D221: Revaluations
B223: AASB 116.77(d) | D223: Fair values for each class of asset are determined as shown below:
D225: Asset Class Fair Value Measured at:
D227: Computer, plant and equipment Market value
D228: Leasehold improvements Depreciated replacement cost
B232: AASB 116.31 | D232: Following initial recognition at cost, infrastructure, plant and equipment are carried at fair value less subsequent accumulated depreciation and accumulated impairment losses. Valuations are conducted with sufficient frequency to ensure that the carrying amounts of assets do not differ materially from the assets’ fair values as at the reporting date. The regularity of independent valuations depends upon the volatility of movements in market values for the relevant assets.
B235: AASB 116.39 | D235: Revaluation adjustments are made on a class basis. Any revaluation increment is credited to equity under the heading of asset revaluation reserve except to the extent that it reverses a previous revaluation decrement of the same asset class that was previously recognised in the surplus/deficit. Revaluation decrements for a class of assets are recognised directly in the surplus/deficit except to the extent that they reverse a previous revaluation increment for that class.
D237: Any accumulated depreciation as at the revaluation date is eliminated against the gross carrying amount of the asset and the asset restated to the revalued amount.
D239: Depreciation
B241: AASB 116.50 AASB 116.60 AASB 116.51 | D241: Depreciable infrastructure, plant and equipment assets are written-off to their estimated residual values over their estimated useful lives to the Commission using, in all cases, the straight-line method of depreciation.
B243: AASB 116.56 and 61 | D243: Depreciation rates (useful lives), residual values and methods are reviewed at each reporting date and necessary adjustments are recognised in the current, or current and future reporting periods, as appropriate.
D245: Depreciation rates applying to each class of depreciable asset are based on the following useful lives:
D247: Asset Class 2011 2010
D249: Computer, plant and equipment 4 to 10 years 4 to 10 years
D250: Leasehold improvements Lease term Lease term
B253: Reference | D253: Impairment
B255: AASB 136.9 | D255: All assets were assessed for impairment at 30 June 2011. Where indications of impairment exist, the asset’s recoverable amount is estimated and an impairment adjustment made if the asset’s recoverable amount is less than its carrying amount.
B257: AASB 136.6 AASB 136.Aus32.1 | D257: The recoverable amount of an asset is the higher of its fair value less costs to sell and its value in use. Value in use is the present value of the future cash flows expected to be derived from the asset. Where the future economic benefit of an asset is not primarily dependent on the asset’s ability to generate future cash flows, and the asset would be replaced if the Commission were deprived of the asset, its value in use is taken to be its depreciated replacement cost.
D259: Derecognition
B261: AASB 116.67 | D261: An item of infrastructure, plant and equipment is derecognised upon disposal or when no further future economic benefits are expected from its use or disposal.
D264: Note 1: Summary of Significant Accounting Policies (continued)
B266: FMO 33.3 | D266: 1.16 Intangibles
D268: The Commission’s intangibles comprise internally developed software for internal use. These assets are carried at cost less accumulated amortisation and accumulated impairment losses.
B270: AASB 138.118(a),(b) | D270: Software is amortised on a straight-line basis over its anticipated useful life. The useful lives of the Commission’s software are 2 to 5 years (2009-10: 2 to 5 years).
B272: AASB 136.9 | D272: All software assets were assessed for indications of impairment as at 30 June 2011.
D274: 1.17 Taxation
B276: Int 1031.6-8 | D276: The Commission is exempt from all forms of taxation except Fringe Benefits Tax (FBT) and the Goods and Services Tax (GST).
D278: Revenues, expenses and assets are recognised net of GST except:
D280: · where the amount of GST incurred is not recoverable from the Australian Taxation Office; and
D282: · for receivables and payables.
B285: Reference | D285: Note 2: Events After the Reporting Period
B287: AASB 110.21 | D287: The Commission is not aware of any significant events that have occurred since balance date that warrant disclosure in these financial statements.

Sheet Note 3
D2: Note 3: EXPENSES
E4: 2011 | G4: 2010
E5: $’000 | G5: $’000
D6: A: Employee Benefits
D7: Wages and salaries | E7: 9523 | G7: 8574
B8: AASB 119.46 | D8: Superannuation:
D9: Defined contribution plans | E9: 749 | G9: 648
D10: Defined benefit plans | E10: 761 | G10: 786
D11: Leave and other entitlements | E11: 813 | G11: 366
D12: Separation and redundancies | E12: 173 | G12: 534
D13: Other employee expenses | E13: 69 | G13: 104
D14: Total employee benefits | E14: =SUM(E7:E13) -> 12088 | G14: =SUM(G7:G13) -> 11012
D16: B: Suppliers
D17: Goods and services
D18: General property operating expenses | E18: 654 | G18: 675
D19: Insurance | E19: 38 | G19: 45
D20: Office consumables | E20: 112 | G20: 97
D21: Official travel | E21: 1309 | G21: 1562
D22: Postage and freight | E22: 51 | G22: 57
D23: Printing and publications | E23: 213 | G23: 322
D24: Professional services and fees | E24: 2001 | G24: 2115
D25: Reference materials, subscriptions and licences | E25: 260 | G25: 216
D26: Staff training | E26: 131 | G26: 102
D27: Telecommunications | E27: 277 | G27: 227
D28: Other | E28: 309 | G28: 577
D29: Total goods and services | E29: =SUM(E18:E28) -> 5355 | G29: =SUM(G18:G28) -> 5995
D31: Goods and services are made up of:
D32: Provision of goods – related entities | E32: 66 | G32: 3
D33: Provision of goods – external parties | E33: 617 | G33: 563
D34: Rendering of services – related entities | E34: 537 | G34: 891
D35: Rendering of services – external parties | E35: 4135 | G35: 4538
D36: Total goods and services | E36: =SUM(E32:E35) -> 5355 | G36: =SUM(G32:G35) -> 5995
D38: Other supplier expenses
B39: AASB 117.35(c) | D39: Operating lease rentals – related entities:
D40: Minimum lease payments | E40: 2206 | G40: 2020
D41: Workers compensation expenses | E41: 33 | G41: 40
D42: Total other supplier expenses | E42: =SUM(E40:E41) -> 2239 | G42: =SUM(G40:G41) -> 2060
D43: Total supplier expenses | E43: =E29+E42 -> 7594 | G43: =G36+G42 -> 8055
D45: C: Depreciation and Amortisation
D46: Depreciation:
D47: Infrastructure, plant and equipment:
D48: Computer, plant and equipment | E48: 283 | G48: 232
D49: Total depreciation | E49: =E48 -> 283 | G49: =G48 -> 232
D51: Amortisation:
D52: Infrastructure, plant and equipment:
D53: Deferred costs - make good | E53: 56 | G53: 51
D54: Intangibles:
D55: Computer software | E55: 19 | G55: 19
D56: Total amortisation | E56: =SUM(E53:E55) -> 75 | G56: =SUM(G53:G55) -> 70
D57: Total depreciation and amortisation | E57: =SUM(E49+E56) -> 358 | G57: =SUM(G49+G56) -> 302
D59: D: Finance Costs
D60: Unwinding of discount | E60: 25 | G60: 28
D61: Total finance costs | E61: =SUM(E60:E60) -> 25 | G61: =SUM(G60:G60) -> 28

Sheet Note 4
D3: Note 3: EXPENSES (continued)
B5: AASB 136.126 | D5: E: Write-Down and Impairment of Assets
D6: Non-financial assets:
D7: Infrastructure, plant and equipment - written off | E7: 232 | G7: 9
D8: Total write-down and impairment of assets | E8: =SUM(E6:E7) -> 232 | G8: =SUM(G6:G7) -> 9
D10: Note 4: INCOME
D13: REVENUE
B15: AASB 118.35(b)(i,ii) | E15: 2011 | G15: 2010
E16: $’000 | G16: $’000
D18: A: Sale of Goods and Rendering of Services
D19: Provision of goods - related entities | E19: 0 | G19: 1
D20: Provision of goods - external parties | E20: 2 | G20: 7
D21: Rendering of services - related entities | E21: 4269 | G21: 3687
D22: Rendering of services - external parties | E22: 599 | G22: 666
D23: Total sale of goods and rendering of services | E23: =SUM(E19:E22) -> 4870 | G23: =SUM(G19:G22)-1 -> 4360
D25: B: Other Revenue
D26: Rental Income
D27: Operating lease:
D28: Sub lease rental income | E28: 675 | G28: 632
D29: Total other revenue | E29: =SUM(E28:E28) -> 675 | G29: =SUM(G28:G28) -> 632
D31: GAINS
E33: 2011 | G33: 2010
E34: $’000 | G34: $’000
D35: C: Other Gains
D36: Resources received free of charge | E36: 50 | G36: 49
D37: Gain on reduction of prior year provisions | E37: 48 | G37: 41
D38: Total other gains | E38: =SUM(E36:E37) -> 98 | G38: 89
D41: REVENUE FROM GOVERNMENT
E43: 2011 | G43: 2010
E44: $’000 | G44: $’000
D45: D: Revenue from Government
D46: Appropriations:
D47: Departmental outputs | E47: 14424 | G47: 13711
D48: Total revenue from Government | E48: =SUM(E47:E47) -> 14424 | G48: =SUM(G47:G47) -> 13711

Sheet Note 5 & 6
B3: Reference | D3: Note 5: Financial Assets
F5: 2011 | H5: 2010
F6: $’000 | H6: $’000
B7: AASB 107.45 | D7: A: Cash and Cash Equivalents
D8: Cash on hand or on deposit | F8: 1081 | H8: 439
D9: Total cash and cash equivalents | F9: =SUM(F8:F8) -> 1081 | H9: =SUM(H8:H8) -> 439
D11: B: Trade and Other Receivables
D12: Good and Services:
D13: Goods and services - related entities | F13: 1189 | H13: 793
D14: Goods and services - external parties | F14: 100 | H14: 359
D15: Total receivables for goods and services | F15: =SUM(F13:F14) -> 1289 | H15: =SUM(H13:H14) -> 1152
D17: Appropriations receivable:
D18: For existing programs | F18: =5175+1327 -> 6502 | H18: 4750
D19: Total appropriations receivable | F19: =SUM(F18:F18) -> 6502 | H19: =SUM(H18:H18) -> 4750
D21: Other receivables:
D22: GST receivable from the Australian Taxation Office | F22: 0 | H22: 52
D23: Other | F23: 13 | H23: 0
D24: Total other receivables | F24: =SUM(F22:F23) -> 13 | H24: =SUM(H22:H23) -> 52
D25: Total trade and other receivables (gross) | F25: =SUM(F15+F19+F24) -> 7804 | H25: =SUM(H15+H19+H24) -> 5954
D27: Total trade and other receivables (net) | F27: =F15+F19+F24 -> 7804 | H27: =H15+H19+H24 -> 5954
D29: Receivables are expected to be recovered in:
D30: No more than 12 months | F30: =F27 -> 7804 | H30: =H27 -> 5954
D31: Total trade and other receivables (net) | F31: =SUM(F30:F30) -> 7804 | H31: =SUM(H30:H30) -> 5954
D33: Receivables are aged as follows:
D34: Not overdue | F34: 7699 | H34: 5176
D35: Overdue by:
D36: 0 to 30 days | F36: 65 | H36: 774
D37: 31 to 60 days | F37: 6 | H37: 4
D38: 61 to 90 days | F38: 0 | H38: 0
D39: More than 90 days | F39: 34 | H39: 0
D40: Total receivables (gross) | F40: =SUM(F34:F39) -> 7804 | H40: =SUM(H34:H39) -> 5954
D43: Note 6: Non-Financial Assets
F45: 2011 | H45: 2010
F46: $’000 | H46: $’000
D48: A: Infrastructure, Plant and Equipment
D49: Computer, plant and equipment:
D50: Gross carrying value (at fair value) | F50: 368 | H50: 784
D51: Accumulated depreciation | F51: -123 | H51: 0
D52: Total computer, plant and equipment | F52: =SUM(F50:F51) -> 245 | H52: =SUM(H50:H51) -> 784
D53: Leasehold improvements:
D54: Gross carrying value (at fair value) | F54: =407+5577 -> 5984 | H54: 382
D55: Accumulated amortisation | F55: -407 | H55: 0
D56: Deferred costs - make good | F56: 388 | H56: 388
D57: Accumulated amortisation | F57: -388 | H57: -332
D58: Total leasehold improvements | F58: =SUM(F54:F55) -> 5577 | H58: =SUM(H54:H57) -> 438
D59: Total infrastructure, plant and equipment | F59: =F52+F58 -> 5822 | H59: =H52+H58 -> 1222

Sheet Note 6,7,8,9
D3: Note 6: Non-Financial Assets (continued)
D5: No revaluations were conducted as at 30 June 2011.
D7: No indicators of impairment were found for infrastructure, plant and equipment.
D9: B: Reconciliation of the Opening and Closing Balances of Infrastructure, Plant and Equipment 2010-11
B11: AASB 116.73(e) | E11: Computer, plant & equipment | F11: Leasehold Improvements | H11: Total
E12: $’000 | F12: $’000 | H12: $’000
D13: As at 1 July 2010
D14: Gross book value | E14: =E47 -> 784 | F14: =F47 -> 789 | H14: =SUM(E14:G14) -> 1573
D15: Accumulated depreciation and impairment | E15: 0 | F15: =F48 -> -351 | H15: =SUM(E15:G15) -> -351
D16: Net book value 1 July 2010 | E16: =SUM(E14:E15) -> 784 | F16: =SUM(F14:F15) -> 438 | H16: =SUM(H14:H15) -> 1222
B17: AASB 116.73(e)(vii) | D17: Additions:
D18: By purchase | E18: 16 | F18: 5577 | H18: =SUM(E18:G18) -> 5593
D19: Revaluations and impairments recognised through equity | E19: -40 | F19: -382 | H19: =SUM(E19:F19) -> -422
D20: Depreciation/amortisation expense | E20: -283 | F20: -56 | H20: =SUM(E20:F20) -> -339
D21: Disposals:
D22: Other | E22: -232 | F22: 0 | H22: =SUM(E22:F22) -> -232
D23: Net book value 30 June 2011 | E23: =SUM(E16:E22) -> 245 | F23: =SUM(F16:F22) -> 5577 | H23: =SUM(H16:H22) -> 5822
D25: Net book value as of 30 June 2011 represented by:
D26: Gross book value | E26: =E16+E18+E19+E22-160 -> 368 | F26: =F14+F18+F19 -> 5984 | H26: =SUM(E26:G26) -> 6352
D27: Accumulated depreciation/amortisation | E27: -123 | F27: =F15+F20 -> -407 | H27: =SUM(E27:G27) -> -530
E28: =SUM(E26:E27) -> 245 | F28: =SUM(F26:F27) -> 5577 | H28: =SUM(H26:H27) -> 5822
D30: B: Reconciliation of the Opening and Closing Balances of Infrastructure, Plant and Equipment 2009-10
E32: Computer, plant & equipment | F32: Leasehold Improvements | H32: Total
E33: $’000 | F33: $’000 | H33: $’000
D34: As at 1 July 2009
D35: Gross book value | E35: 722 | F35: 1098 | H35: =SUM(E35:G35) -> 1820
D36: Accumulated depreciation and impairment | E36: 0 | F36: -300 | H36: =F36 -> -300
D37: Net book value 1 July 2009 | E37: =SUM(E35:E36) -> 722 | F37: =SUM(F35:F36) -> 798 | H37: =SUM(H35:H36) -> 1520
D38: Additions:
D39: By purchase | E39: 396 | F39: 0 | H39: =SUM(E39:G39) -> 396
D40: Revaluations and impairments recognised through equity | E40: -93 | F40: -309 | H40: =SUM(E40:F40) -> -402
B41: Reference | D41: Depreciation/amortisation expense | E41: -232 | F41: -51 | H41: =SUM(E41:F41) -> -283
D42: Disposals:
B43: AASB 138.118(e) | D43: Other | E43: -9 | F43: 0 | H43: =SUM(E43:F43) -> -9
D44: Net book value 30 June 2010 | E44: =SUM(E37:E43) -> 784 | F44: =F37+F39+F40+F41 -> 438 | H44: =SUM(H37:H43) -> 1222
D46: Net book value as of 30 June 2010 represented by:
D47: Gross book value | E47: 784 | F47: 789 | H47: =SUM(E47:G47) -> 1573
D48: Accumulated depreciation/amortisation | E48: 0 | F48: -351 | H48: =SUM(E48:G48) -> -351
B49: AASB 138.118(e)(vi) | E49: =SUM(E47:E48) -> 784 | F49: =SUM(F47:F48) -> 438 | H49: =SUM(H47:H48) -> 1222
D51: Note 6: Non-Financial Assets (continued)
F53: 2011 | H53: 2010
F54: $’000 | H54: $’000
D55: C: Intangibles
D56: Computer software (at cost):
D57: Internally customised – in use | F57: 31 | H57: 31
D58: Internally developed - in use | F58: 440 | H58: 440
D59: Total computer software (gross) | F59: =SUM(F57:F58) -> 471 | H59: =SUM(H57:H58) -> 471
D60: Accumulated amortisation | F60: -471 | H60: -452
D61: Total computer software (net) | F61: =SUM(F59:F60) -> 0 | H61: =SUM(H59:H60) -> 19
D62: Total intangibles | F62: =F61 -> 0 | H62: =H61 -> 19
D64: No indicators of impairment were found for intangible assets.
D66: No intangibles are expected to be sold or disposed of within the next 12 months.
D68: D: Reconciliation of the Opening and Closing Balances of Intangibles 2010-11
E70: Computer software internally developed | F70: Computer software customised | H70: Total
E71: $’000 | F71: $’000 | H71: $’000
D72: As at 1 July 2010
D73: Gross book value | E73: =E98 -> 31 | F73: =F98 -> 440 | H73: =SUM(E73:F73) -> 471
D74: Accumulated amortisation and impairment | E74: =E99 -> -23 | F74: =F99 -> -429 | H74: =SUM(E74:F74) -> -452
D75: Net book value 1 July 2010 | E75: =SUM(E73:E74) -> 8 | F75: =SUM(F73:F74) -> 11 | H75: =SUM(H73:H74) -> 19
D76: Amortisation | E76: -8 | F76: -11 | H76: =SUM(E76:F76) -> -19
D77: Net book value 30 June 2011 | E77: =SUM(E75:E76) -> 0 | F77: =SUM(F75:F76) -> 0 | H77: =SUM(H75:H76) -> 0
D79: Net book value as of 30 June 2011 represented by:
D80: Gross book value | E80: =E73 -> 31 | F80: =F73 -> 440 | H80: =SUM(E80:F80) -> 471
D81: Accumulated amortisation | E81: =E74+E76 -> -31 | F81: =F74+F76 -> -440 | H81: =SUM(E81:F81) -> -471
E82: =SUM(E80:E81) -> 0 | F82: =SUM(F80:F81) -> 0 | H82: =SUM(H80:H81) -> 0
D84: D: Reconciliation of the Opening and Closing Balances of Intangibles 2009-10
E86: Computer software internally developed | F86: Computer software customised | H86: Total
E87: $’000 | F87: $’000 | H87: $’000
D88: As at 1 July 2009
D89: Gross book value | E89: 28 | F89: 440 | H89: =SUM(E89:F89) -> 468
D90: Accumulated amortisation and impairment | E90: -15 | F90: -417 | H90: =SUM(E90:F90) -> -432
D91: Net book value 1 July 2009 | E91: =SUM(E89:E90) -> 13 | F91: =SUM(F89:F90) -> 23 | H91: =SUM(H89:H90) -> 36
D92: Additions:
D93: By purchase | E93: 3 | F93: 0 | H93: =SUM(E93:F93) -> 3
D94: Amortisation | E94: -8 | F94: -12 | H94: =SUM(E94:F94) -> -20
D95: Net book value 30 June 2010 | E95: =SUM(E93:E94) -> -5 | F95: =SUM(F91:F94) -> 11 | H95: =SUM(H91:H94) -> 19
D97: Net book value as of 30 June 2010 represented by:
D98: Gross book value | E98: 31 | F98: 440 | H98: =SUM(E98:F98) -> 471
D99: Accumulated amortisation | E99: =E90+E94 -> -23 | F99: =F90+F94 -> -429 | H99: =SUM(E99:F99) -> -452
E100: =SUM(E98:E99) -> 8 | F100: =SUM(F98:F99) -> 11 | H100: =SUM(H98:H99) -> 19
D104: Note 6: Non-Financial Assets (continued)
F106: 2011 | H106: 2010
F107: $’000 | H107: $’000
D109: E: Other Non-Financial Assets
D110: Prepayments | F110: 45 | H110: 86
D111: Total other non-financial assets | F111: =SUM(F110:F110) -> 45 | H111: =SUM(H110:H110) -> 86
D113: No indicators of impairment were found for other non-financial assets.
D115: Total other non-financial assets - are expected to be recovered in:
D116: No more than 12 months | F116: 41 | H116: 10
D117: More than 12 months | F117: 4 | H117: 76
D118: Total other non-financial assets | F118: =SUM(F116:F117) -> 45 | H118: =SUM(H116:H117) -> 86
D120: Note 7: Payables
F122: 2011 | H122: 2010
F123: $’000 | H123: $’000
D124: A: Supplier payables
D125: Trade creditors and accruals | F125: 816 | H125: 1025
D126: Total supplier payables | F126: =SUM(F125:F125) -> 816 | H126: =SUM(H125:H125) -> 1025
D128: Supplier payables expected to be settled within 12 months:
D129: Related entities | F129: =132 -> 132 | H129: 687
D130: External parties | F130: =F126-F129 -> 684 | H130: 338
D131: Total supplier payables | F131: =SUM(F129:F130) -> 816 | H131: =SUM(H129:H130) -> 1025
D133: Settlement is generally made in accordance with the terms of the supplier invoice.
D135: B: Other Payables
D136: Salaries and wages | F136: 260 | H136: 181
D137: Superannuation | F137: 38 | H137: 31
D138: Other employee expenses | F138: 8 | H138: 24
D139: Revenue received in advance | F139: 3964 | H139: 2858
D140: GST Payable | F140: 57 | H140: 0
D141: Total other payables | F141: =SUM(F136:F140) -> 4327 | H141: =SUM(H136:H140) -> 3094
D143: Total other payables are expected to be settled in:
D144: No more than 12 months | F144: =F136+F137+F138+2724+F140 -> 3087 | H144: 1623
D145: More than 12 months | F145: 1240 | H145: 1471
D146: Total other payables | F146: =SUM(F144:F145) -> 4327 | H146: =SUM(H144:H145) -> 3094
D149: Note 8: Non-interest Bearing Liabilities
F151: 2011 | H151: 2010
F152: $’000 | H152: $’000
D154: A: Non-interest Bearing Liabilities
D155: Lease incentivesi | F155: 5667 | H155: 48
D156: Total non-interest bearing liabilities | F156: =SUM(F155:F155) -> 5667 | H156: =SUM(H155:H155) -> 48
D158: Non-interest bearing liabilities are expected to be settled in:
D159: No more than 12 months | F159: 568 | H159: 48
D160: More than 12 months | F160: 5099 | H160: 0
D161: Total non-interest bearing liabilities | F161: =SUM(F159:F160) -> 5667 | H161: =SUM(H159:H159) -> 48
D163: i Lease incentive included in property operating lease
D166: Note 9: Provisions
F168: 2011 | H168: 2010
F169: $’000 | H169: $’000
D170: A: Employee Provisions
D171: Leave | F171: 2302 | H171: 2098
D172: Total employee provisions | F172: =SUM(F171:F171) -> 2302 | H172: =SUM(H171:H171) -> 2098
D174: Employee provisions are expected to be settled in:
D175: No more than 12 months | F175: 1856 | H175: 1556
D176: More than 12 months | F176: 446 | H176: 542
D177: Total employee provisions | F177: =SUM(F175:F176) -> 2302 | H177: =SUM(H175:H176) -> 2098

Sheet Note 9 cont.
B3: Reference | D3: Note 9: Provisions (continued)
I5: 2011 | K5: 2010
I6: $’000 | K6: $’000
D7: B: Other Provisions
D8: Provision for contract obligations | I8: 256 | K8: 288
D9: Provision for restoration obligations | I9: 79 | K9: 537
D10: Total other provisions | I10: =SUM(I8:I9) -> 335 | K10: =SUM(K8:K9) -> 825
B12: AASB 101.61 | D12: Other provisions are expected to be settled in:
D13: No more than 12 months | I13: 335 | K13: 718
D14: More than 12 months | I14: 0 | K14: 107
D15: Total other provisions | I15: =SUM(I13:I14) -> 335 | K15: =SUM(K13:K14) -> 825
G17: Provision for contract obligations | I17: Provision for restoration obligations | K17: Total
G18: $’000 | I18: $’000 | K18: $’000
B19: AASB 137.84(a) | D19: Carrying amount 1 July 2010 | G19: =K8 -> 288 | I19: =K9 -> 537 | K19: =SUM(G19:I19) -> 825
B20: AASB 137.84(b) | D20: Additional provisions made | G20: 167 | I20: 0 | K20: =SUM(E20:I20) -> 167
D21: Amounts used | G21: -199 | I21: -483 | K21: =SUM(E21:I21) -> -682
B22: AASB 137.84(c) | D22: Unwinding of discount | G22: 0 | I22: 25 | K22: =SUM(E22:I22) -> 25
B23: AASB 137.84(a) | D23: Closing balance 30 June 2011 | G23: =SUM(G19:G22) -> 256 | I23: =SUM(I19:I22) -> 79 | K23: =SUM(K19:K22) -> 335

Sheet Note 10 & 11
D3: Note 10: Cash Flow Reconciliation
I5: 2011 | K5: 2010
I6: $’000 | K6: $’000
D7: Reconciliation of cash and cash equivalents as per Balance Sheet to Cash Flow Statement
D9: Cash and cash equivalents as per:
D10: Cash flow statement | I10: 1081 | K10: 439
D11: Balance sheet | I11: ='Balance Sheet'!F11 -> 1081 | K11: 439
D12: Difference | I12: =I10-I11 -> 0 | K12: =K10-K11 -> 0
D14: Reconciliation of net cost of services to net cash from operating activities:
D15: Net cost of services | I15: ='Income Statement'!F31 -> -14654 | K15: -14325
D16: Add revenue from Government | I16: ='Income Statement'!F33 -> 14424 | K16: 13711
D18: Adjustments for non-cash items
D19: Depreciation/amortisation | I19: ='Income Statement'!F12 -> 358 | K19: 302
D20: Finance costs and restoration obligations | I20: ='Note 3'!E61 -> 25 | K20: 28
D21: Net write-down of non-financial assets | I21: ='Income Statement'!F14 -> 232 | K21: 9
D22: Changes in assets/liabilities
D23: (Increase) / decrease in net receivables | I23: -467 | K23: -522
D24: (Increase) / decrease in other non-financial assets | I24: 41 | K24: -2
D25: Increase / (decrease) in employee provisions | I25: 205 | K25: -286
D26: Increase / (decrease) in supplier payables | I26: -209 | K26: 68
D27: Increase / (decrease) in other payables | I27: 1176 | K27: 485
D28: Increase / (decrease) in other provisions | I28: -515 | K28: 269
D29: Increase / (decrease) in non-interest bearing liabilities | I29: 42 | K29: -49
D30: Net cash from operating activities | I30: =SUM(I15:I29) -> 658 | K30: =SUM(K15:K29) -> -312
D33: Note 11: Contingent Liabilities and Assets
D35: Unquantifiable Contingencies
D37: At 30 June 2011, the Commission was named as a respondent in one application before the High Court and one matter before the Administrative Appeals Tribunal.
D39: The Commission is also appearing as an intervener in one matter before Fair Work Australia and one matter before the High Court.
D41: It is not possible to estimate the amounts of the eventual payments that may be required in relation to the unresolved claims, though it is not common for costs to be awarded against the Commission in these matters.

Sheet Note 12 & 13
D4: Note 12: Senior Executive Remuneration
A6: [2MISC_007] | D6: Note 12A: Senior Executive Remuneration Expense for the Reporting Period
G8: 2011 | I8: 2010
G9: $ | I9: $
D10: Short-term employee benefits:
D11: Salary | G11: 1345811 | I11: 1139423
D12: Annual leave accrued | G12: 9866 | I12: 27045
D13: Other | G13: 31564 | I13: 13408
D14: Total short-term employee benefits | G14: =SUM(G11:G13) -> 1387241 | I14: =SUM(I11:I13) -> 1179876
D16: Post-employment benefits:
D17: Superannuation | G17: 137935 | I17: 90469
D18: Total post-employment benefits | G18: =G17 -> 137935 | I18: =I17 -> 90469
D20: Other long-term benefits:
D21: Long-service leave | G21: 26320 | I21: 21180
D22: Total other long-term benefits | G22: =G21 -> 26320 | I22: =I21 -> 21180
D24: Termination benefits | G24: 0 | I24: 259530
D25: Total | G25: =G22+G18+G14 -> 1551496 | I25: =I24+I22+I18+I14 -> 1551055
D27: Notes:
D28: 1. Note 12A was prepared on an accrual basis.
D29: 2. Note 12A excludes acting arrangements and part-year service where remuneration expensed was less than $150,000.
D30: 3. Other includes accommodation allowance as per Remuneration Tribunal Determination 2010/10.
A32: [2NR_001] | D32: Note 12B: Average Annual Remuneration Packages and Bonus Paid for Substantive Senior Executives as at the end of the Reporting Period
D34: as at 30 June 2011 | M34: as at 30 June 2010
F35: Fixed elements | K35: Bonus paid2 | O35: Fixed elements
D36: Fixed Elements and Bonus Paid1 | E36: Senior Executives | G36: Salary | I36: Allowances | J36: Total | M36: Senior Executives | O36: Salary | Q36: Allowances | S36: Total
E37: No. | G37: $ | I37: $ | J37: $ | K37: $ | M37: No. | O37: $ | Q37: $ | S37: $
D38: Total remuneration (including part-time arrangements):
D39: less than $150,000 | E39: 1 | G39: 145000 | I39: 0 | J39: =SUM(G39:I39) -> 145000 | K39: 0 | M39: 0 | O39: 0 | Q39: 0 | S39: 0
D40: $150,000 to $179,999 | E40: 1 | G40: 171765 | I40: 0 | J40: 171765 | K40: 0 | M40: 1 | O40: 165000 | Q40: 0 | S40: 165000
D41: $180,000 to $209,999 | E41: 4 | G41: 191120 | I41: 0 | J41: 191120 | K41: 0 | M41: 4 | O41: 183590 | Q41: 0 | S41: 183590
D42: Total | E42: =SUM(E39:E41) -> 6 | M42: 5
D44: Note 12: Senior Executive Remuneration (continued)
D45: Notes:
D46: 1. This table reports on substantive senior executives who are employed by the entity as at the end of the reporting period. Fixed elements are based on the employment agreement of each individual - each row represents an average annualised figure (based on headcount) for the individuals in that remuneration package band (i.e. the 'Total' column).
D47: 2. Represents average actual bonuses paid during the reporting period. The 'Bonus paid' is excluded from the 'Total' calculation, (for the purpose of determining remuneration package bands). The 'Bonus paid' within a particular band may vary between financial years due to factors such as individuals commencing with or leaving the entity during the financial year.
D49: Variable Elements:
D50: With the exception of performance bonuses, variable elements are not included in the 'Fixed Elements and Bonus Paid' table above. The following variable elements are available as part of senior executives' remuneration package:
D51: (a) Performance bonuses:
D52: No performance bonuses were paid during the reporting period.
D53: (b) On average senior executives are entitled to the following leave entitlements:
D54: (i) Annual Leave: 4 weeks accrual per year (147 hours)
D55: (ii) Long Service Leave: Accrual of 0.3 months per year (9 calendar days per annum)
D56: (c) Senior executives are members of one of the following superannuation funds:
D57: (i) Public Sector Superannuation Scheme (PSS) - this scheme is closed to new members and employer contributions averaged 17% for the reporting period;
D58: (ii) Public Sector Superannuation Accumulation Plan (PSSap) with employer contributions of 15.4% per annum or
D59: (iii) Superannuation Choice of Fund schemes with employer contributions of 9% per annum as per Super Guarantee Obligations (and max earnings base set by ATO)
D60: (d) Variable allowances:
D61: (i) SES Band 1 - Car in lieu $22,000pa SES Band 2 - car in lieu $25,000pa
D62: (ii) Total Remuneration Package benefits as per Remuneration Tribunal Determination 2010/10
D63: (iii) Accommodation Allowance of $32,780pa as per Remuneration Tribunal Determination 2010/10
D64: (e) Others:
D65: Various salary sacrifice arrangements are available to senior executives including superannuation and motor vehicles.
D67: Note 12C: Other Highly Paid Staff
D69: During the reporting period, there were no employees whose salary plus performance bonus was $150,000 or more (2010: nil). These employees did not have a role as senior executive and are therefore not disclosed as senior executive in Note 12A and Note 12B.
D72: Note 13: Remuneration of Auditors
D74: Financial statement audit services were provided free of charge to the Commission | G74: 2011 $'000 | I74: 2010 $'000
D76: The fair value of the services provided by the Auditor-General was:
D78: Financial Statement Audit | G78: 50 | I78: 48
D80: No other services were provided by the Auditor-General.

Sheet Note 14
B3: Reference | D3: Note 14: Financial Instruments
J5: 2011 | L5: 2010
J6: $'000 | L6: $'000
B7: AASB 7.8 | D7: A: Categories of Financial Instruments
D8: Financial Assets
D9: Loans and receivables:
D10: Cash and cash equivalents | J10: ='Note 5 & 6'!F9 -> 1081 | L10: 439
D11: Trade and other receivables | J11: ='Note 5 & 6'!F15+'Note 5 & 6'!F23 -> 1302 | L11: 1152
D12: Appropriation receivable | J12: ='Note 5 & 6'!F19 -> 6502 | L12: 4750
D13: GST receivable from the Australian Taxation Office (ATO) | J13: 0 | L13: 52
D14: Carrying amount of financial assets | J14: =SUM(J10:J13) -> 8885 | L14: =SUM(L10:L13) -> 6393
D16: Financial Liabilities
D17: Other liabilities:
D18: Trade creditors and accruals | J18: ='Note 6,7,8,9'!F126 -> 816 | L18: 1025
D19: Lease incentives | J19: ='Note 6,7,8,9'!F156 -> 5667 | L19: 48
D20: Revenue received in advance | J20: ='Note 6,7,8,9'!F139 -> 3964 | L20: 2858
D21: GST Payable to the Australian Taxation Office (ATO) | J21: ='Note 6,7,8,9'!F140 -> 57 | L21: 0
D22: Carrying amount of financial liabilities | J22: =SUM(J18:J21) -> 10504 | L22: =SUM(L18:L21) -> 3931
B24: Reference | D24: B: Fair Value of Financial Instruments
B25: AASB 7.25
G26: Carrying | I26: Fair | J26: Carrying | L26: Fair
G27: amount | I27: value | J27: amount | L27: value
G28: 2011 | I28: 2011 | J28: 2010 | L28: 2010
D29: Financial Assets | G29: $'000 | I29: $'000 | J29: $'000 | L29: $'000
D30: Cash and cash equivalents | G30: =J10 -> 1081 | I30: =G30 -> 1081 | J30: =L10 -> 439 | L30: =J30 -> 439
D31: Trade and other receivables | G31: =J11 -> 1302 | I31: =G31 -> 1302 | J31: =L11 -> 1152 | L31: =J31 -> 1152
D32: Appropriation receivable | G32: =J12 -> 6502 | I32: =G32 -> 6502 | J32: =L12 -> 4750 | L32: =J32 -> 4750
D33: GST receivable from the ATO | G33: 0 | I33: =G33 -> 0 | J33: =L13 -> 52 | L33: =J33 -> 52
F34: Total | G34: =SUM(G30:G33) -> 8885 | H34: =SUM(H30:I33) -> 8885 | J34: =SUM(J30:J33) -> 6393 | L34: =SUM(L30:L33) -> 6393
D35: Financial Liabilities
D36: Trade creditors and accruals | G36: =J18 -> 816 | I36: =G36 -> 816 | J36: =L18 -> 1025 | L36: =J36 -> 1025
D37: Lease incentives | G37: =J19 -> 5667 | I37: =G37 -> 5667 | J37: =L19 -> 48 | L37: =J37 -> 48
D38: Revenue received in advance | G38: =J20 -> 3964 | I38: =G38 -> 3964 | J38: =L20 -> 2858 | L38: =L20 -> 2858
D39: GST Payable to the ATO | G39: =J21 -> 57 | I39: =G39 -> 57 | J39: 0 | L39: 0
F40: Total | G40: =SUM(G36:G39) -> 10504 | H40: =SUM(H36:I39) -> 10504 | J40: =SUM(J36:J39) -> 3931 | L40: =SUM(L36:L39) -> 3931
B42: Reference | D42: C: Credit Risk
B44: AASB 7.33 | D44: The Commission's maximum exposures to credit risk at reporting date in relation to each class of recognised financial asset is the carrying amount of those assets as indicated in the Balance Sheet.
B45: AASB 7.34(c) | D45: The Commission has no significant exposures to any concentrations of credit risk nor does it hold any collateral to mitigate against credit risk.
B47: AASB 7.36(c) | D47: Credit quality of financial instruments not past due or individually determined as impaired:
G48: Not past due nor impaired | H48: Not past due nor impaired | J48: Past due or impaired | L48: Past due or impaired
G49: 2011 | H49: 2010 | J49: 2011 | L49: 2010
D50: Loans and receivables | G50: $'000 | H50: $'000 | J50: $'000 | L50: $'000
D51: Cash and cash equivalents | G51: =G30 -> 1081 | H51: 439 | J51: 0 | L51: 0
D52: Trade and other receivables | G52: ='Note 5 & 6'!F15-'Note 5 & 6'!F36-'Note 5 & 6'!F37-'Note 5 & 6'!F39+13 -> 1197 | I52: 375 | J52: ='Note 5 & 6'!F36+'Note 5 & 6'!F37+'Note 5 & 6'!F39 -> 105 | L52: 777
D53: Appropriation receivable | G53: =J12 -> 6502 | I53: =L12 -> 4750 | J53: 0 | L53: 0
D54: GST receivable from the ATO | G54: =G33 -> 0 | I54: =J33 -> 52 | J54: 0 | L54: 0
F55: Total | G55: =SUM(G51:G54) -> 8780 | H55: =SUM(H51:I54) -> 5616 | J55: =SUM(J51:J54) -> 105 | L55: 777
D58: Note 14: Financial Instruments (continued)
B60: AASB 7.37(a) | D60: Ageing of financial assets that were past due but not impaired for 2011:
F61: 0 to 30 | G61: 31 to 60 | H61: 61 to 90 | J61: 90+
F62: days | G62: days | H62: days | J62: days | K62: Total
F63: $'000 | G63: $'000 | H63: $'000 | J63: $'000 | K63: $'000
D64: Trade and other receivables | F64: ='Note 5 & 6'!F36 -> 65 | G64: ='Note 5 & 6'!F37 -> 6 | H64: ='Note 5 & 6'!F38 -> 0 | J64: ='Note 5 & 6'!F39 -> 34 | K64: =SUM(F64:J64) -> 105
E65: Total | F65: =SUM(F64) -> 65 | G65: =SUM(G64) -> 6 | H65: =SUM(H64) -> 0 | J65: =J64 -> 34 | K65: =SUM(K64) -> 105
D67: Ageing of financial assets that were past due but not impaired for 2010:
F68: 0 to 30 | G68: 31 to 60 | I68: 61 to 90 | J68: 90+
F69: days | G69: days | I69: days | J69: days | L69: Total
F70: $'000 | G70: $'000 | I70: $'000 | J70: $'000 | L70: $'000
D71: Trade and other receivables | F71: 774 | G71: 4 | I71: 0 | J71: 0 | L71: =SUM(F71:J71) -> 778
E72: Total | F72: =SUM(F71) -> 774 | G72: =SUM(G71) -> 4 | I72: =SUM(I71) -> 0 | J72: =SUM(J71) -> 0 | L72: =SUM(F72:J72) -> 778
B74: Reference | D74: D: Liquidity Risk
B75: AASB 7.39(c) | D75: The Commission's financial liabilities are payables, accrued expenses, revenue received in advance and other non-interest bearing liabilities. The exposure to liquidity risk is based on the notion that the Commission will encounter difficulty in meeting its obligations associated with financial liabilities. This is unlikely due to the appropriation funding and mechanisms available to the Commission (e.g. Advance to the Minister for Finance) and internal policies and procedures put in place to endure there are appropriate resources to meet its financial obligations.
B77: AASB 7.39(a) | D77: Maturities for non-derivative financial liabilities 2011:
E78: On | F78: within 1 | G78: 1 to 2 | I78: 2 to 5 | J78: > 5
E79: demand | F79: year | G79: years | I79: years | J79: years | K79: Total
D80: Other liabilities | E80: $'000 | F80: $'000 | G80: $'000 | I80: $'000 | J80: $'000 | K80: $'000
D81: Trade creditors and accruals | E81: 0 | F81: =J18 -> 816 | G81: 0 | I81: 0 | J81: 0 | K81: =SUM(E81:J81) -> 816
D82: Lease incentives | E82: 0 | F82: 568 | G82: 566 | I82: 1700 | J82: 2833 | L82: =SUM(E82:J82) -> 5667
D83: Revenue received in advance | E83: 0 | F83: ='Note 6,7,8,9'!F139 -> 3964 | G83: 0 | I83: 0 | J83: 0 | L83: =SUM(E83:J83) -> 3964
D84: GST Payable to the ATO | E84: 0 | F84: =J21 -> 57 | G84: 0 | I84: 0 | J84: 0 | L84: =SUM(E84:J84) -> 57
D85: Total | E85: =SUM(E81) -> 0 | F85: =SUM(F81:F84) -> 5405 | G85: =SUM(G81:G84) -> 566 | I85: =SUM(I81:I84) -> 1700 | J85: =SUM(J81:J84) -> 2833 | K85: =SUM(K81:L84) -> 10504
D87: Maturities for non-derivative financial liabilities 2010:
E88: On | F88: within 1 | G88: 1 to 2 | I88: 2 to 5 | J88: > 5
E89: demand | F89: year | G89: years | I89: years | J89: years | K89: Total
D90: Other liabilities | E90: $'000 | F90: $'000 | G90: $'000 | I90: $'000 | J90: $'000 | K90: $'000
D91: Trade creditors and accruals | E91: 0 | F91: =L18 -> 1025 | G91: 0 | I91: 0 | J91: 0 | K91: =SUM(E91:J91) -> 1025
D92: Lease incentives | E92: 0 | F92: 48 | G92: 0 | I92: 0 | J92: 0 | L92: =SUM(F92:G92) -> 48
D93: Revenue received in advance | E93: 0 | F93: 2858 | G93: 0 | I93: 0 | J93: 0 | L93: =SUM(F93:J93) -> 2858
D94: Total | E94: 0 | F94: =SUM(F91:F93) -> 3931 | G94: =SUM(G91:G93) -> 0 | I94: 0 | J94: 0 | L94: =SUM(K91:L93) -> 3931
D96: The Commission has no derivative financial liabilities in both the current and prior year.
B98: Reference | D98: E: Market Risk
D100: The Commission holds basic financial instruments that do not expose the Commission to certain market risks. The Commission is not exposed to 'interest rate risk', 'currency risk' or 'other price risk'.

Sheet Note 15
B3: Reference | C3: Note 15: Appropriations
C5: Table A: Annual Appropriations ('Recoverable GST exclusive')
D6: 2011 Appropriations | K6: Appropriation applied in 2011 (current and prior years) | L6: Variance(a)
D7: Appropriation Act | G7: FMA Act | J7: Total appropriation
D8: Annual Appropriation | E8: Appropriations reduced | F8: AFM | G8: Section 30 | H8: Section 31 | I8: Section 32
D9: $'000 | E9: $'000 | F9: $'000 | G9: $'000 | H9: $'000 | I9: $'000 | J9: $'000 | K9: $'000 | L9: $'000
C10: DEPARTMENTAL
C11: Ordinary annual services | D11: 15241 | E11: 0 | F11: 0 | G11: 0 | H11: 6643 | I11: 0 | J11: =D11+E11+F11+G11+H11+I11 -> 21884 | K11: =-19979-7 -> -19986 | L11: =SUM(J11:K11) -> 1898
C12: Other services
C13: Equity | D13: 510 | E13: 0 | F13: 0 | G13: 0 | H13: 0 | I13: 0 | J13: =SUM(D13:I13) -> 510 | K13: 0 | L13: 510
C14: Loans | D14: 0 | E14: 0 | F14: 0 | G14: 0 | H14: 0 | I14: 0 | J14: =SUM(D14:I14) -> 0 | K14: 0 | L14: 0
C15: Total departmental | D15: =SUM(D11:D14) -> 15751 | E15: 0 | F15: 0 | G15: 0 | H15: =SUM(H11:H14) -> 6643 | I15: =SUM(I11:I14) -> 0 | J15: =SUM(J11:J14) -> 22394 | K15: =SUM(K11:K14) -> -19986 | L15: =SUM(L11:L14) -> 2408
C17: Notes:
C18: (a) variances represent the agencies 30 June 2011 cash balance (refer note 5A), undrawn capital budget (DCB) funding and undrawn equity injection.
D20: 2010 Appropriations | L20: Appropriation applied in 2010 (current and prior years) | M20: Variance(b)
D21: Appropriation Act | H21: FMA Act | K21: Total appropriation
D22: Annual Appropriation | E22: Appropriations reduced(a) | F22: AFM | G22: Section 14 (Act No. 1) | H22: Section 30 | I22: Section 31 | J22: Section 32
D23: $'000 | E23: $'000 | F23: $'000 | G23: $'000 | H23: $'000 | I23: $'000 | J23: $'000 | K23: $'000 | L23: $'000 | M23: $'000
C24: DEPARTMENTAL
C25: Ordinary annual services | D25: 13711 | E25: 0 | F25: 0 | G25: 0 | H25: 0 | I25: 5263 | J25: 0 | K25: =SUM(D25:J25) -> 18974 | L25: -14224 | M25: =SUM(K25:L25) -> 4750
C26: Other services
C27: Equity | D27: 0 | E27: 1227 | F27: 0 | G27: 0 | H27: 0 | I27: 0 | J27: 0 | K27: =SUM(D27:J27) -> 1227 | L27: -1227 | M27: =SUM(K27:L27) -> 0
C28: Loans | D28: 0 | E28: 0 | F28: 0 | G28: 0 | H28: 0 | I28: 0 | J28: 0 | K28: 0 | L28: 0 | M28: 0
C29: Total departmental | D29: =SUM(D25:D28) -> 13711 | E29: =SUM(E25:E28) -> 1227 | F29: 0 | G29: 0 | H29: 0 | I29: =SUM(I25:I28) -> 5263 | J29: 0 | K29: =SUM(K25:K28) -> 20201 | L29: =SUM(L25:L28) -> -15451 | M29: =SUM(K29:L29) -> 4750
C31: Notes:
C32: (a) Return of contributed equity/capital under the application of the Operation Sunlight initiative.
C33: (b) variance represents the agencies appropriations receivable at 30 June 2010 (refer to note 5B).
C35: Table B: Unspent Departmental Annual Appropriations ('Recoverable GST exclusive')
C37: Authority | G37: 2011 | H37: 2010
G38: $'000 | H38: $'000
C39: Appropriation Act (No. 1) 2006-2007 | G39: 1523 | H39: 1523
C40: Appropriation Act (No. 1) 2007-2008 | G40: 1500 | H40: 1500
C41: Appropriation Act (No. 1) 2008-2009 | G41: 462 | H41: 462
C42: Appropriation Act (No. 1) 2009-2010 | G42: 565 | H42: 1265
C43: Appropriation Act (No. 1) 2010-2011 | G43: 1125 | H43: 0
C44: Capital Budget Bill 1 (DCB) 2010-2011 | G44: 817 | H44: 0
C45: Appropriation Act (No. 2) 2010-2011 | G45: 510 | H45: 0
C46: Total | G46: =SUM(G39:G45) -> 6502 | H46: =SUM(H39:H45) -> 4750

Sheet Note 16, 17, 18
D2: Note 16: Special Accounts
D4: The Commission has an 'Other Trust Monies' special account. The account was established under Section 20 of the Financial Management and Accountability Act 1997 (FMA Act). For the year ended 30 June 2011 the account had a nil opening balance and there were no transactions debited or credited to it in the 2010-2011 financial year.
D6: The purpose of the 'Other Trust Monies' specail account is for the expenditure of monies temporarily held on trust or otherwise for the benefit of a person other than the Commonwealth. Any money held thus is special public money under section 16 of the FMA Act.
D8: Note 17: Compensation and Debt Relief
D10: The Commission made no payments for compensation or debt relief during the reporting period.
D12: Note 18: Reporting of Outcomes
D14: The Commission is structured to meet one outcome. The Commission outcome and output structure is outlined in Note1.1 to these financial statements. All resources to be used by the Commission are directed towards the achievement of the Commission's outcome.
D16: A: Net Cost of Outcome Delivery
E18: Outcome 1 | G18: Total
E19: 2011 | F19: 2010 | G19: 2011 | H19: 2010
E20: $’000 | F20: $’000 | G20: $’000 | H20: $’000
D21: Expenses:
D22: Departmental | E22: ='Income Statement'!F15 -> 20297 | F22: 19406 | G22: =E22 -> 20297 | H22: 19406
D23: Total | E23: =SUM(E22:E22) -> 20297 | F23: =SUM(F22:F22) -> 19406 | G23: =E23 -> 20297 | H23: 19406
D25: Income from non-government sector:
D26: Departmental
B27: FMO 121.51P | D27: Activities subject to cost recovery | E27: ='Note 4'!E22+'Note 4'!E20 -> 601 | F27: 673 | G27: =E27 -> 601 | H27: 673
D28: Other | E28: ='Income Statement'!F26 -> 98 | F28: 632 | G28: 98 | H28: 632
D29: Total | E29: =SUM(E27:E28) -> 699 | F29: =SUM(F27:F28) -> 1305 | G29: 699 | H29: 1305
D31: Other own-source income:
D32: Departmental | E32: ='Note 4'!E21+'Note 4'!E29 -> 4944 | F32: 4319 | G32: =E32 -> 4944 | H32: =F32 -> 4319
D33: Total | E33: =SUM(E32:E32) -> 4944 | F33: =SUM(F32:F32) -> 4319 | G33: =E33 -> 4944 | H33: =F33 -> 4319
B34: AASB 1052.15(c)
D35: Net cost of outcome delivery | E35: =SUM(E23-E29-E33) -> 14654 | F35: =SUM(F23-F29-F33) -> 13782 | G35: =E35 -> 14654 | H35: =F35:F35 -> 13782
D37: Net costs shown include intra-government costs that are eliminated in calculating the actual Budget Outcome. Refer to the Outcome Resourcing Table on page [page no.] of this Annual Report.
D39: Note 18: Reporting of Outcomes (continued)
D42: B: Major Classes of Departmental Expense, Income, Assets and Liabilities by Outcome
B43: AASB 1052.15(d)
E44: Outcome 1 | G44: Total
E45: 2011 | F45: 2010 | G45: 2011 | H45: 2010
E46: $’000 | F46: $’000 | G46: $’000 | H46: $’000
D47: Departmental expenses:
D48: Employee benfits | E48: ='Income Statement'!F10 -> 12088 | F48: 11012 | G48: =E48 -> 12088 | H48: =F48 -> 11012
B49: AASB 1052.16 | D49: Supplier expenses | E49: ='Income Statement'!F11 -> 7594 | F49: 8055 | G49: =E49 -> 7594 | H49: 8055
D50: Depreciation and amortisation | E50: ='Income Statement'!F12 -> 358 | F50: 302 | G50: =E50 -> 358 | H50: 302
D51: Finance costs | E51: ='Income Statement'!F13 -> 25 | F51: 28 | G51: =E51 -> 25 | H51: 28
D52: Other expenses | E52: ='Income Statement'!F14 -> 232 | F52: 9 | G52: =E52 -> 232 | H52: 9
D53: Total | E53: =SUM(E47:E52) -> 20297 | F53: =SUM(F47:F52) -> 19406 | G53: =SUM(G47:G52) -> 20297 | H53: =SUM(H47:H52) -> 19406
D55: Departmental income:
D56: Sales of goods and services | E56: ='Note 4'!E23 -> 4870 | F56: 4360 | G56: =E56 -> 4870 | H56: =F56 -> 4360
D57: Revenue from government | E57: ='Note 4'!E48 -> 14424 | F57: 13711 | G57: =E57 -> 14424 | H57: 13711
D58: Rental income | E58: ='Note 4'!E28 -> 675 | F58: 632 | G58: =E58 -> 675 | H58: =F58 -> 632
B59: AASB 1052.16 | D59: Other income | E59: ='Note 4'!E38 -> 98 | F59: 89 | G59: =E59 -> 98 | H59: 89
D60: Total | E60: =SUM(E56:E59) -> 20067 | F60: =SUM(F56:F59) -> 18792 | G60: =SUM(G56:G59) -> 20067 | H60: =SUM(H56:H59) -> 18792
D62: Departmental assets:
D63: Cash and cash equivalents | E63: ='Note 5 & 6'!F9 -> 1081 | F63: 439 | G63: =E63 -> 1081 | H63: =F63 -> 439
D64: Trade and other receivables | E64: ='Note 5 & 6'!F27 -> 7804 | F64: 5954 | G64: =E64 -> 7804 | H64: 5954
D65: Infrastructure, plant and equipment | E65: ='Note 5 & 6'!F59 -> 5822 | F65: 1222 | G65: =E65 -> 5822 | H65: 1222
D66: Intangibles | E66: ='Note 6,7,8,9'!F62 -> 0 | F66: 19 | G66: =E66 -> 0 | H66: 19
D67: Other non-financial assets | E67: ='Note 6,7,8,9'!F111 -> 45 | F67: 86 | G67: =E67 -> 45 | H67: 86
D68: Total | E68: =SUM(E63:E67) -> 14752 | F68: =SUM(F63:F67) -> 7720 | G68: =SUM(G63:G67) -> 14752 | H68: =SUM(H63:H67) -> 7720
D70: Departmental liabilities:
D71: Suppliers | E71: ='Note 6,7,8,9'!F126 -> 816 | F71: 1025 | G71: =E71 -> 816 | H71: =F71 -> 1025
D72: Lease incentives | E72: ='Note 6,7,8,9'!F156 -> 5667 | F72: 48 | G72: =E72 -> 5667 | H72: 48
D73: Employee provisisons | E73: ='Note 6,7,8,9'!F172 -> 2302 | F73: 2098 | G73: =E73 -> 2302 | H73: 2098
D74: Other provisions and payables | E74: ='Note 6,7,8,9'!F141+'Note 9 cont.'!I10 -> 4662 | F74: 3919 | G74: =E74 -> 4662 | H74: 3919
D75: Total | E75: =SUM(E70:E74) -> 13447 | F75: =SUM(F70:F74) -> 7090 | G75: =E75 -> 13447 | H75: =SUM(H70:H74) -> 7090

Sheet Note 19
D3: Note 19: Comprehensive Loss Attributable to the Commission
F5: 2011 | H5: 2010
F6: $’000 | H6: $’000
D7: Total Comprehensive Loss Attributable to the Commission
D8: Total comprehensive loss attributable to the Australian Government1 | F8: ='Income Statement'!F41 -> -652 | H8: ='Income Statement'!H41 -> -1015
D9: Plus: non-appropriated expenses
D10: Depreciation and amortisation expenses | F10: ='Income Statement'!F12 -> 358 | H10: ='Income Statement'!H12 -> 302
D11: Total comprehensive loss attributable to the Commission | F11: =SUM(F8:F10) -> -294 | H11: =SUM(H8:H10) -> -713
D13: 1. As per the Statement of Comprehensive Income.
